fUST/lending_fUST_20250221
["ID","MTS","AMOUNT","RATE_DAILY","PERIOD"]
[353910945,1740131443315,-75.53571125,0.00014273,2]
[353910947,1740131443325,-500.0,0.00014273,2]
[353910949,1740131443335,-932.01,0.00014273,2]
[353910951,1740131443344,-500.0,0.00014273,2]
[353910953,1740131443354,-500.0,0.00014273,2]
[353910955,1740131443363,-1442.24,0.00014273,2]
[353910957,1740131443372,-222.19277583,0.00014328,2]
[353910959,1740131443382,-595.59,0.00014355,2]
[353910961,1740131443391,-500.0,0.00014355,2]
[353910963,1740131443400,-932.01,0.00014355,2]
[353910965,1740131443413,-500.0,0.00014355,2]
[353910968,1740131443423,-500.0,0.00014356,2]
[353910970,1740131443432,-567.37,0.00014356,2]
[353910972,1740131443441,-500.05,0.00014356,2]
[353910974,1740131443452,-1072.09,0.00014356,2]
[353910976,1740131443461,-559.35445755,0.00014356,2]
[353910978,1740131443471,-500.0,0.00014356,2]
[353910980,1740131443480,-4300.62,0.00014356,2]
[353910982,1740131443490,-753.7,0.00014356,2]
[353910984,1740131443500,-2278.28,0.00014356,2]
[353910986,1740131443509,-500.0,0.00014356,2]
[353910988,1740131443519,-497.44157914,0.00014356,2]
[353910990,1740131443528,-500.0,0.00014356,2]
[353910992,1740131443538,-500.0,0.00014356,2]
[353910994,1740131443547,-860.29,0.00014356,2]
[353910996,1740131443557,-500.0,0.00014356,2]
[353910998,1740131443566,-500.0,0.00014356,2]
[353911000,1740131443575,-714.23,0.00014356,2]
[353911002,1740131443585,-568.02276375,0.00014356,2]
[353911004,1740131443595,-500.0,0.00014356,2]
[353911006,1740131443605,-1442.24,0.00014356,2]
[353911007,1740131443615,-623.0,0.000144,2]
[353911008,1740131443624,-1102.9708592,0.00014405,2]
[353911009,1740131443633,-595.59,0.00014437,2]
[353911010,1740131443643,-500.0,0.00014437,2]
[353911011,1740131443652,-932.01,0.00014437,2]
[353911012,1740131443662,-500.0,0.00014437,2]
[353911013,1740131443671,-500.0,0.00014438,2]
[353911014,1740131443680,-567.37,0.00014438,2]
[353911015,1740131443689,-500.05,0.00014438,2]
[353911016,1740131443699,-1072.09,0.00014438,2]
[353911017,1740131443708,-500.0,0.00014438,2]
[353911018,1740131443718,-4300.62,0.00014438,2]
[353911019,1740131443727,-753.7,0.00014438,2]
[353911020,1740131443737,-2278.28,0.00014438,2]
[353911021,1740131443746,-500.0,0.00014438,2]
[353911022,1740131443755,-500.0,0.00014438,2]
[353911023,1740131443764,-500.0,0.00014438,2]
[353911025,1740131443776,-860.29,0.00014438,2]
[353911026,1740131443785,-500.0,0.00014438,2]
[353911028,1740131443794,-500.0,0.00014438,2]
[353911030,1740131443804,-714.23,0.00014438,2]
[353911032,1740131443814,-500.0,0.00014438,2]
[353911034,1740131443824,-1442.24,0.00014438,2]
[353911036,1740131443834,-500.0,0.0001452,2]
[353911039,1740131443844,-567.37,0.0001452,2]
[353911041,1740131443854,-500.05,0.0001452,2]
[353911043,1740131443867,-1072.09,0.0001452,2]
[353911045,1740131443877,-500.0,0.0001452,2]
[353911047,1740131443886,-4300.62,0.0001452,2]
[353911049,1740131443895,-753.7,0.0001452,2]
[353911051,1740131443904,-2278.28,0.0001452,2]
[353911053,1740131443914,-595.59,0.0001452,2]
[353911055,1740131443924,-500.0,0.0001452,2]
[353911057,1740131443933,-500.0,0.0001452,2]
[353911059,1740131443943,-500.0,0.0001452,2]
[353911061,1740131443953,-500.0,0.0001452,2]
[353911063,1740131443963,-860.29,0.0001452,2]
[353911065,1740131443973,-500.0,0.0001452,2]
[353911067,1740131443984,-500.0,0.0001452,2]
[353911070,1740131443994,-714.23,0.0001452,2]
[353911086,1740131444136,-932.01,0.0001452,2]
[353911088,1740131444146,-500.0,0.0001452,2]
[353911090,1740131444156,-388.97610044,0.0001452,2]
[353911093,1740131444165,-1442.24,0.0001452,2]
[353911094,1740131444175,-7438.69753278,0.00014592,2]
[353911097,1740131444184,-3000.0,0.000146,2]
[353911099,1740131444194,-4076.05278411,0.000146,2]
[353911101,1740131444203,-500.0,0.00014602,2]
[353911103,1740131444213,-500.0,0.00014602,2]
[353911105,1740131444222,-500.0,0.00014602,2]
[353911107,1740131444231,-567.37,0.00014602,2]
[353911109,1740131444240,-500.05,0.00014602,2]
[353911111,1740131444250,-1072.09,0.00014602,2]
[353911113,1740131444259,-484.81240592,0.00014602,2]
[353911115,1740131444268,-4300.62,0.00014602,2]
[353911117,1740131444277,-753.7,0.00014602,2]
[353911119,1740131444288,-2278.28,0.00014602,2]
[353911121,1740131444297,-595.59,0.00014602,2]
[353911123,1740131444307,-500.0,0.00014602,2]
[353911125,1740131444316,-500.0,0.00014602,2]
[353911127,1740131444325,-486.11974784,0.00014602,2]
[353911129,1740131444335,-500.0,0.00014602,2]
[353911131,1740131444345,-860.29,0.00014602,2]
[353911133,1740131444354,-500.0,0.00014602,2]
[353911135,1740131444363,-500.0,0.00014602,2]
[353911137,1740131444372,-714.23,0.00014602,2]
[353911139,1740131444381,-932.01,0.00014602,2]
[353911141,1740131444390,-500.0,0.00014602,2]
[353911143,1740131444399,-1442.24,0.00014602,2]
[353911145,1740131444410,-168.40801011,0.00014603,2]
[353911147,1740131444419,-150.0,0.00014628,2]
[353911149,1740131444431,-396.0,0.00014628,2]
[353911151,1740131444440,-150.049,0.00014628,2]
[353911153,1740131444450,-150.283,0.00014628,2]
[353911155,1740131444459,-500.0,0.00014673,2]
[353911157,1740131444471,-500.0,0.00014684,2]
[353911160,1740131444481,-500.0,0.00014684,2]
[353911161,1740131444490,-500.0,0.00014684,2]
[353911164,1740131444500,-500.0,0.00014684,2]
[353911166,1740131444511,-500.0,0.00014684,2]
[353911168,1740131444522,-500.0,0.00014684,2]
[353911170,1740131444531,-500.0,0.00014684,2]
[353911172,1740131444541,-567.37,0.00014684,2]
[353911174,1740131444550,-500.05,0.00014684,2]
[353911175,1740131444561,-1072.09,0.00014684,2]
[353911177,1740131444570,-4300.62,0.00014684,2]
[353911179,1740131444579,-753.7,0.00014684,2]
[353911181,1740131444588,-2278.28,0.00014684,2]
[353911183,1740131444598,-595.59,0.00014684,2]
[353911185,1740131444607,-500.0,0.00014684,2]
[353911187,1740131444616,-500.0,0.00014684,2]
[353911189,1740131444625,-500.0,0.00014684,2]
[353911191,1740131444634,-860.29,0.00014684,2]
[353911193,1740131444644,-265.96773808,0.00014684,2]
[353911195,1740131444653,-500.0,0.00014684,2]
[353911197,1740131444662,-714.23,0.00014684,2]
[353911199,1740131444671,-932.01,0.00014684,2]
[353911201,1740131444680,-500.0,0.00014684,2]
[353911203,1740131444689,-1442.24,0.00014684,2]
[353911205,1740131444698,-553.4525649,0.00014698,2]
[353911207,1740131444707,-575.83535736,0.00014699,2]
[353911209,1740131444716,-160.0,0.00014699,2]
[353911211,1740131444725,-500.0,0.00014699,2]
[353911213,1740131444734,-500.0,0.00014699,2]
[353911215,1740131444744,-636.13461265,0.00014699,2]
[353911217,1740131444753,-500.0,0.00014699,2]
[353911219,1740131444762,-500.0,0.00014699,2]
[353911221,1740131444772,-500.0,0.00014699,2]
[353911223,1740131444782,-500.0,0.00014699,2]
[353911225,1740131444791,-481.28240097,0.00014699,2]
[353911227,1740131444800,-435.8270837,0.00014699,2]
[353911229,1740131444809,-458.0,0.00014699,2]
[353911231,1740131444819,-500.0,0.00014699,2]
[353911233,1740131444828,-12477.06585413,0.000147,5]
[353911235,1740131444837,-211882.07012521,0.000147,5]
[353911247,1740131444934,-791.08378039,0.000147,5]
[353911249,1740131444947,-511966.86672474,0.000147,5]
[353911368,1740131445979,-17057.013119,0.000147,5]
[353911380,1740131446072,-47480.50347332,0.000147,5]
[353911574,1740131448752,-153.0,0.00014,2]
[353911575,1740131448761,-314.0,0.000142,2]
[353911576,1740131448772,-349.0,0.000142,2]
[353911577,1740131448793,-7438.69753278,0.00014581,2]
[353911578,1740131448803,-212.112,0.00014628,2]
[353911579,1740131448812,-253.784,0.00014628,2]
[353911580,1740131448822,-34182.80275922,0.000147,5]
[353911581,1740131475563,500.0,0.000137,7]
[353911582,1740131477508,500.0,0.000137,7]
[353911583,1740131478200,500.0,0.000137,7]
[353911584,1740131478970,500.0,0.000137,7]
[353911585,1740131479720,500.0,0.000137,7]
[353911586,1740131480494,500.0,0.000137,7]
[353911587,1740131481614,500.0,0.000137,7]
[353911588,1740131482379,500.0,0.000137,7]
[353911589,1740131483136,500.0,0.000137,7]
[353911590,1740131483909,500.0,0.000137,7]
[353911591,1740131484661,500.0,0.000137,7]
[353911592,1740131485453,500.0,0.000137,7]
[353911593,1740131486199,500.0,0.000137,7]
[353911594,1740131486957,477.48626145,0.000137,7]
[353911596,1740131616914,184.775621,9.041e-05,2]
[353911597,1740131880681,-300.0,0.00010958,2]
[353911598,1740131880714,-985.91,0.00010959,2]
[353911599,1740131880748,-714.09,0.00010959,2]
[353911600,1740131889653,-107.5,0.00010959,2]
[353911601,1740131889686,-684.66,0.00010959,2]
[353911602,1740131892489,207.84,0.00010959,2]
[353911603,1740131912877,-362.71,0.00010959,2]
[353911604,1740131912925,-475.46,0.00010959,2]
[353911605,1740131913631,161.83,0.00010959,2]
[353911606,1740131921563,-234.39,0.00010959,2]
[353911607,1740131924106,330.18,0.00010959,2]
[353911608,1740131964962,-275.15,0.00010959,2]
[353911609,1740131964994,-229.29,0.00010959,2]
[353911610,1740131965026,-191.08,0.00010959,2]
[353911611,1740131966259,159.23,0.00010959,2]
[353911612,1740131985146,-796.18,0.00010959,2]
[353911613,1740132124273,-300.0,0.00011999,2]
[353911614,1740132124307,-9700.0,0.00012,2]
[353911615,1740132126411,-10000.0,0.00012,2]
[353911616,1740132127846,-10000.0,0.00012,2]
[353911617,1740132129423,-10000.0,0.00012,2]
[353911618,1740132130787,-10000.0,0.00012,2]
[353911621,1740132558181,-300.0,0.00011999,2]
[353911622,1740132558206,-50441.22500207,0.00012,2]
[353911623,1740132558242,-731.95507688,0.00012,2]
[353911624,1740132558267,-250.0,0.00012457,2]
[353911625,1740132558292,-250.0,0.000126,2]
[353911626,1740132558313,-166.7440985,0.000129,2]
[353911627,1740132558336,-420.0,0.00013172,2]
[353911628,1740132612800,342.609825,9.041e-05,2]
[353911645,1740132631912,-300.0,0.00013697,2]
[353911647,1740132631921,-500.0,0.00013698,2]
[353911649,1740132631931,-500.0,0.00013698,2]
[353911651,1740132631940,-500.0,0.00013698,2]
[353911653,1740132631950,-502.70613339,0.00013698,2]
[353911656,1740132631959,-507.38713816,0.00013698,2]
[353911658,1740132631969,-270.37021015,0.00013698,2]
[353911660,1740132631979,-500.0,0.00013698,2]
[353911662,1740132631988,-500.0,0.00013698,2]
[353911663,1740132631998,-500.0,0.00013698,2]
[353911665,1740132632007,-500.0,0.00013698,2]
[353911668,1740132632017,-370.3220502,0.00013698,2]
[353911669,1740132632028,-500.0,0.00013698,2]
[353911671,1740132632037,-500.0,0.00013698,2]
[353911674,1740132632046,-500.0,0.00013698,2]
[353911676,1740132632055,-500.0,0.00013698,2]
[353911678,1740132632064,-543.68,0.00013698,2]
[353911679,1740132632073,-400.0,0.00013699,7]
[353911682,1740132632084,-241.321003,0.00013699,2]
[353911683,1740132632095,-233.72129,0.00013699,2]
[353911685,1740132632104,-586.30716793,0.00013699,2]
[353911687,1740132632113,-500.0,0.00013699,2]
[353911689,1740132632122,-500.0,0.00013699,2]
[353911691,1740132632133,-500.0,0.00013699,2]
[353911694,1740132632142,-501.3004678,0.00013699,2]
[353911697,1740132632151,-605.43537759,0.00013699,2]
[353911700,1740132632160,-661.03,0.00013699,2]
[353911703,1740132632169,-1971.12,0.00013699,2]
[353911706,1740132632179,-218.75201635,0.00013699,2]
[353911709,1740132632188,-226.65543606,0.00013699,2]
[353911712,1740132632197,-22.51373855,0.000137,7]
[353911715,1740132632206,-500.0,0.000137,7]
[353911718,1740132632215,-500.0,0.000137,7]
[353911721,1740132632224,-500.0,0.000137,7]
[353911726,1740132632243,-500.0,0.000137,7]
[353911729,1740132632254,-500.0,0.000137,7]
[353911732,1740132632263,-500.0,0.000137,7]
[353911735,1740132632273,-500.0,0.000137,7]
[353911739,1740132632284,-500.0,0.000137,7]
[353911742,1740132632293,-500.0,0.000137,7]
[353911745,1740132632303,-500.0,0.000137,7]
[353911748,1740132632312,-500.0,0.000137,7]
[353911751,1740132632322,-500.0,0.000137,7]
[353911754,1740132632331,-500.0,0.000137,7]
[353911757,1740132632341,-500.0,0.000137,7]
[353911760,1740132632351,-500.0,0.000137,7]
[353911763,1740132632360,-500.0,0.000137,7]
[353911765,1740132632370,-500.0,0.000137,7]
[353911768,1740132632379,-500.0,0.000137,7]
[353911771,1740132632389,-500.0,0.000137,7]
[353911774,1740132632399,-252.96,0.000137,7]
[353911776,1740132632407,-500.0,0.000137,7]
[353911778,1740132632417,-154.7783581,0.000137,2]
[353911780,1740132632426,-153.0,0.000137,2]
[353911782,1740132632436,-154.7783581,0.000137,2]
[353911784,1740132632445,-153.0,0.000137,2]
[353911786,1740132632455,-153.0,0.000137,2]
[353911788,1740132632464,-154.7783581,0.000137,2]
[353911790,1740132632473,-153.0,0.000137,2]
[353911792,1740132632483,-154.7783581,0.000137,2]
[353911794,1740132632492,-500.0,0.00013779,2]
[353911796,1740132632502,-1044.21,0.00013779,2]
[353911798,1740132632511,-537.22511724,0.00013779,2]
[353911800,1740132632520,-500.0,0.0001378,2]
[353911802,1740132632531,-500.0,0.0001378,2]
[353911804,1740132632541,-500.0,0.0001378,2]
[353911806,1740132632551,-500.0,0.0001378,2]
[353911808,1740132632560,-500.0,0.0001378,2]
[353911810,1740132632569,-499.03,0.0001378,2]
[353911812,1740132632578,-500.0,0.0001378,2]
[353911814,1740132632588,-500.0,0.0001378,2]
[353911817,1740132632597,-500.0,0.0001378,2]
[353911819,1740132632607,-543.68,0.0001378,2]
[353911821,1740132632617,-500.0,0.00013781,2]
[353911823,1740132632626,-500.0,0.00013781,2]
[353911825,1740132632635,-500.0,0.00013781,2]
[353911827,1740132632645,-661.03,0.00013781,2]
[353911829,1740132632654,-1971.12,0.00013781,2]
[353911831,1740132632665,-153.0,0.000138,2]
[353911833,1740132632675,-500.0,0.00013861,2]
[353911835,1740132632684,-1044.21,0.00013861,2]
[353911837,1740132632693,-500.0,0.00013863,2]
[353911841,1740132632858,-500.0,0.00013863,2]
[353911842,1740132632867,-500.0,0.00013863,2]
[353911843,1740132632877,-500.0,0.00013863,2]
[353911844,1740132632886,-500.0,0.00013863,2]
[353911845,1740132632895,-500.0,0.00013863,2]
[353911847,1740132632905,-500.0,0.00013863,2]
[353911848,1740132632914,-500.0,0.00013863,2]
[353911850,1740132632923,-543.68,0.00013863,2]
[353911853,1740132632932,-394.62761899,0.00013864,2]
[353911854,1740132632942,-500.0,0.00013864,2]
[353911856,1740132632951,-500.0,0.00013864,2]
[353911859,1740132632960,-661.03,0.00013864,2]
[353911861,1740132632970,-1971.12,0.00013864,2]
[353911863,1740132632981,-154.7783581,0.000139,2]
[353911865,1740132632991,-500.0,0.00013938,2]
[353911867,1740132632999,-500.0,0.00013944,2]
[353911869,1740132633009,-1044.21,0.00013944,2]
[353911871,1740132633019,-500.0,0.00013945,2]
[353911873,1740132633030,-8299.16621069,0.00013945,4]
[353911875,1740132633039,-500.0,0.00013945,2]
[353911877,1740132633049,-500.0,0.00013945,2]
[353911879,1740132633059,-500.0,0.00013945,2]
[353911881,1740132633069,-500.0,0.00013945,2]
[353911883,1740132633081,-500.0,0.00013945,2]
[353911885,1740132633094,-500.0,0.00013945,2]
[353911887,1740132633104,-500.0,0.00013945,2]
[353911889,1740132633114,-543.68,0.00013945,2]
[353911891,1740132633124,-500.0,0.00013946,2]
[353911893,1740132633133,-230.28920196,0.00013946,2]
[353911895,1740132633143,-661.03,0.00013946,2]
[353911897,1740132633153,-1971.12,0.00013946,2]
[353911899,1740132633163,-7438.69753278,0.00013967,2]
[353911901,1740132633173,-201.6492785,0.00014,2]
[353911903,1740132633182,-500.0,0.00014026,2]
[353911905,1740132633192,-1044.21,0.00014026,2]
[353911907,1740132633202,-500.0,0.00014027,2]
[353911909,1740132633212,-500.0,0.00014027,2]
[353911911,1740132633222,-500.0,0.00014027,2]
[353911913,1740132633232,-500.0,0.00014027,2]
[353911915,1740132633241,-500.0,0.00014027,2]
[353911917,1740132633251,-500.0,0.00014027,2]
[353911919,1740132633260,-500.0,0.00014027,2]
[353911921,1740132633270,-500.0,0.00014027,2]
[353911922,1740132633280,-543.68,0.00014027,2]
[353911924,1740132633290,-500.0,0.00014028,2]
[353911926,1740132633299,-661.03,0.00014028,2]
[353911928,1740132633308,-1971.12,0.00014028,2]
[353911930,1740132633318,-518.73600501,0.00014058,2]
[353911932,1740132633327,-500.0,0.00014058,2]
[353911934,1740132633338,-500.0,0.00014108,2]
[353911936,1740132633347,-500.0,0.00014108,2]
[353911938,1740132633356,-500.0,0.00014108,2]
[353911940,1740132633366,-1044.21,0.00014108,2]
[353911942,1740132633376,-500.0,0.00014109,2]
[353911944,1740132633385,-500.0,0.00014109,2]
[353911946,1740132633395,-500.0,0.00014109,2]
[353911948,1740132633404,-500.0,0.00014109,2]
[353911950,1740132633414,-500.0,0.00014109,2]
[353911952,1740132633423,-500.0,0.00014109,2]
[353911954,1740132633432,-500.0,0.00014109,2]
[353911956,1740132633442,-500.0,0.00014109,2]
[353911958,1740132633451,-543.68,0.00014109,2]
[353911959,1740132633461,-500.0,0.0001411,2]
[353911961,1740132633471,-661.03,0.0001411,2]
[353911963,1740132633480,-1971.12,0.0001411,2]
[353911965,1740132633489,-500.0,0.0001419,2]
[353911967,1740132633499,-500.0,0.0001419,2]
[353911969,1740132633508,-160.81664172,0.0001419,2]
[353911971,1740132633517,-1044.21,0.0001419,2]
[353911973,1740132633527,-500.0,0.00014191,2]
[353911975,1740132633536,-500.0,0.00014191,2]
[353911977,1740132633545,-420.87857344,0.00014191,2]
[353911986,1740132633625,-79.12142656,0.00014191,2]
[353911988,1740132633635,-193.59857344,0.00014191,2]
[353912279,1740132640183,-306.40142656,0.00014191,2]
[353912281,1740132640192,-47.86518302,0.00014191,2]
[353912283,1740132640203,-257.09625755,0.00014191,2]
[353913348,1740132957168,-151.0,0.00019068,120]
[353913349,1740133206622,50000.0,0.00017888,60]
[353913350,1740133330183,300.0,0.000181,99]
[353913367,1740133488270,50000.0,0.00017888,60]
[353913368,1740133498107,300.0,0.000191,120]
[353913371,1740133596107,-282.33943079,0.00010528,2]
[353913372,1740133642090,-706.77264433,0.00010319,2]
[353913379,1740133757093,-4293.22735567,0.00010319,2]
[353913380,1740133757115,-5000.0,0.00010423,2]
[353913381,1740133757136,-300.0,0.00010958,2]
[353913382,1740133757158,-260.56,0.00010959,2]
[353913383,1740133757178,-217.13,0.00010959,2]
[353913384,1740133757198,-180.94,0.00010959,2]
[353913385,1740133757219,-150.79,0.00010959,2]
[353913386,1740133757240,-753.95,0.00010959,2]
[353913387,1740133757261,-420.0,0.00012042,2]
[353913388,1740133757281,-212.97150887,0.00012723,2]
[353913389,1740133757313,-398.65114663,0.00012723,2]
[353913390,1740133757334,-20833.69173337,0.00012846,2]
[353913395,1740133785627,325.479333,9.041e-05,2]
[353913421,1740133832361,-5000.0,0.00012591,2]
[353913422,1740133832371,-5000.0,0.00012718,2]
[353913423,1740133832380,-302.0,0.00012838,2]
[353913424,1740133832390,-300.0,0.00012845,2]
[353913425,1740133832399,-2353.91197944,0.00012846,2]
[353913455,1740133840555,-5000.0,0.00012718,2]
[353913456,1740133840566,-1712.39628719,0.00012846,2]
[353913457,1740133840576,-500.0,0.00013698,2]
[353913458,1740133840585,-500.0,0.00013698,2]
[353913459,1740133840595,-500.0,0.00013698,2]
[353913460,1740133840605,-500.0,0.00013698,2]
[353913461,1740133840614,-500.0,0.00013698,2]
[353913462,1740133840623,-500.0,0.00013698,2]
[353913463,1740133840632,-500.0,0.00013698,2]
[353913464,1740133840641,-1965.9,0.00013698,2]
[353913465,1740133840650,-500.0,0.00013698,2]
[353913466,1740133840659,-636.24,0.00013698,2]
[353913467,1740133840668,-500.0,0.00013698,2]
[353913468,1740133840677,-500.0,0.00013698,2]
[353913469,1740133840686,-633.01,0.00013698,2]
[353913470,1740133840695,-516.36,0.00013698,2]
[353913471,1740133840704,-500.0,0.00013698,2]
[353913472,1740133840713,-500.0,0.00013698,2]
[353913473,1740133840722,-500.0,0.00013698,2]
[353913474,1740133840731,-500.0,0.00013698,2]
[353913475,1740133840740,-500.0,0.00013698,2]
[353913476,1740133840866,-500.0,0.00013698,2]
[353913477,1740133840881,-500.0,0.00013698,2]
[353913478,1740133840891,-500.0,0.00013698,2]
[353913479,1740133840901,-500.0,0.00013698,2]
[353913480,1740133840911,-500.0,0.00013698,2]
[353913481,1740133840922,-1046.03,0.00013698,2]
[353913482,1740133840932,-500.0,0.00013698,2]
[353913483,1740133840942,-500.0,0.00013698,2]
[353913484,1740133840953,-500.0,0.00013698,2]
[353913485,1740133840962,-500.0,0.00013698,2]
[353913486,1740133840971,-500.0,0.00013698,2]
[353913487,1740133840980,-500.0,0.00013698,2]
[353913488,1740133840989,-500.0,0.00013698,2]
[353913489,1740133840999,-241.3210047,0.00013699,2]
[353913490,1740133841008,-186.977032,0.00013699,2]
[353913491,1740133841016,-297.08138184,0.00013699,2]
[353913492,1740133841025,-500.0,0.00013699,2]
[353913493,1740133841034,-500.0,0.00013699,2]
[353913494,1740133841043,-500.0,0.00013779,2]
[353913495,1740133841052,-500.0,0.00013779,2]
[353913496,1740133841061,-500.0,0.00013779,2]
[353913497,1740133841071,-502.87048312,0.00013779,2]
[353913498,1740133841080,-500.0,0.00013779,2]
[353913499,1740133841089,-168.19095169,0.00013779,2]
[353913500,1740133841100,-694.2,0.00013779,2]
[353913501,1740133841109,-500.0,0.00013779,2]
[353913502,1740133841117,-500.0,0.00013779,2]
[353913503,1740133841127,-500.0,0.00013779,2]
[353913504,1740133841136,-1000.0,0.00013779,2]
[353913505,1740133841145,-500.0,0.00013779,2]
[353913506,1740133841154,-500.0,0.00013779,2]
[353913507,1740133841163,-500.0,0.00013779,2]
[353913508,1740133841172,-500.0,0.00013779,2]
[353913509,1740133841181,-500.0,0.0001378,2]
[353913510,1740133841190,-1965.9,0.0001378,2]
[353913511,1740133841199,-500.0,0.0001378,2]
[353913512,1740133841208,-500.0,0.0001378,2]
[353913513,1740133841218,-292.72,0.0001378,2]
[353913514,1740133841227,-500.0,0.0001378,2]
[353913515,1740133841236,-500.0,0.0001378,2]
[353913516,1740133841244,-197.03,0.0001378,2]
[353913517,1740133841253,-276.14,0.0001378,2]
[353913518,1740133841262,-500.0,0.0001378,2]
[353913519,1740133841271,-500.0,0.0001378,2]
[353913520,1740133841280,-500.0,0.0001378,2]
[353913521,1740133841289,-1046.03,0.0001378,2]
[353913522,1740133841298,-280.09,0.0001378,2]
[353913523,1740133841306,-500.0,0.0001378,2]
[353913524,1740133841315,-500.0,0.0001378,2]
[353913525,1740133841324,-500.0,0.00013781,2]
[353913526,1740133841333,-501.45983264,0.00013781,2]
[353913527,1740133841342,-5737.89593229,0.00013849,2]
[353913544,1740133843247,-6366.72337332,0.00013849,2]
[353913545,1740133843256,-500.0,0.00013861,2]
[353913546,1740133843266,-694.2,0.00013861,2]
[353913547,1740133843275,-500.0,0.00013861,2]
[353913548,1740133843284,-1965.9,0.00013863,2]
[353913549,1740133843293,-500.0,0.00013863,2]
[353913550,1740133843303,-500.0,0.00013863,2]
[353913551,1740133843312,-500.0,0.00013863,2]
[353913552,1740133843322,-500.0,0.00013863,2]
[353913553,1740133843331,-500.0,0.00013863,2]
[353913554,1740133843340,-500.0,0.00013863,2]
[353913555,1740133843350,-500.0,0.00013863,2]
[353913556,1740133843360,-1046.03,0.00013863,2]
[353913557,1740133843369,-500.0,0.00013863,2]
[353913558,1740133843378,-500.0,0.00013863,2]
[353913559,1740133843387,-500.0,0.00013864,2]
[353913560,1740133843397,-306.0,0.0001389,2]
[353913561,1740133843406,-306.7082091,0.0001389,2]
[353913562,1740133843415,-220.9116047,0.0001389,2]
[353913563,1740133843424,-154.7376905,0.0001389,2]
[353913564,1740133843433,-500.0,0.00013944,2]
[353913565,1740133843442,-694.2,0.00013944,2]
[353913566,1740133843451,-243.44553908,0.00013944,2]
[353913567,1740133843460,-1965.9,0.00013945,2]
[353913568,1740133843470,-500.0,0.00013945,2]
[353913569,1740133843483,-500.0,0.00013945,2]
[353913570,1740133843493,-500.0,0.00013945,2]
[353913571,1740133843502,-500.0,0.00013945,2]
[353913572,1740133843511,-500.0,0.00013945,2]
[353913573,1740133843521,-500.0,0.00013945,2]
[353913574,1740133843530,-500.0,0.00013945,2]
[353913575,1740133843539,-1046.03,0.00013945,2]
[353913576,1740133843548,-500.0,0.00013945,2]
[353913577,1740133843557,-500.0,0.00013945,2]
[353913578,1740133843567,-232.30470522,0.00013946,2]
[353913579,1740133843576,-500.0,0.0001395,2]
[353913580,1740133843586,-7438.69753278,0.00013979,2]
[353913581,1740133843595,-500.6172009,0.00013985,2]
[353913582,1740133843605,-275.23146651,0.00013985,2]
[353913583,1740133843615,-505.2555679,0.00014,2]
[353913584,1740133843624,-162.14846714,0.00014,2]